Cogmind - Beta 13 @@@ ROGUE MODE // 2024.06.13 @ 12:46:41 Player: lt_nd Result: Destroyed by as-26244 with Assembled Heavy Rifle Performance ------------- Evolutions (0) 0 Regions Visited (2) 400 Robots Destroyed (33) 165 Value Destroyed (685) 685 Prototype IDs (0) 0 Alien Tech Used (0) 0 Bonus (0) 0 TOTAL SCORE: 1250 Bonus ------- None Cogmind --------- Core Integrity 0/250 Matter 244/300 Energy 100/100 System Corruption 4% Temperature Cool (0) Movement Core (1450) Ox28 Location -10/Mines Parts ------- > --- POWER (1) -------- (None) > --- PROPULSION (2) --- (None) > --- UTILITY (2) ------ Huge Storage Unit Medium Armor Plating > --- WEAPON (2) ------- (None) > --- INVENTORY (25) --- Light Ion Engine Aluminum Leg Large Storage Unit Transport Network Coupler ECM Suite ECM Suite Medium Armor Plating Medium Armor Plating Hacking Suite Hacking Suite Assault Rifle Assault Rifle Light Assault Rifle Light Assault Rifle Light Cannon Peak State ------------ > --- POWER ------------ Ion Engine > --- PROPULSION ------- Light Treads Light Treads > --- UTILITY ---------- Large Storage Unit Medium Armor Plating > --- WEAPON ----------- Light Assault Rifle Light Assault Rifle > --- INVENTORY -------- Ion Engine Light Ion Engine ECM Suite Medium Armor Plating Medium Armor Plating Medium Armor Plating Hacking Suite Hacking Suite Small Laser Assault Rifle Assault Rifle Light Assault Rifle Grenade Launcher [Rating: 10] Favorites ----------- Power Ion Engine Engine Ion Engine Propulsion Light Treads Treads Light Treads Wheel Compact Wheel Utility Medium Armor Plating Device Seismic Detector Storage Huge Storage Unit Protection Medium Armor Plating Weapon Assault Rifle Ballistic Gun Assault Rifle Launcher Grenade Launcher Build | -11 -10 -10 ------- Run | Yrd Mat Min Slots Evolved . | . . . Power . | . . . Propulsion . | . . . Utility . | . . . Weapon . | . . . Parts Attached 20 | 10 7 3 Power 2 | 1 . 1 Engine 2 | 1 . 1 Core . | . . . Reactor . | . . . Propulsion 5 | 4 1 . Treads 3 | 2 1 . Leg . | . . . Wheel 2 | 2 . . Hover . | . . . Flight . | . . . Utility 7 | 3 3 1 Device 1 | 1 . . Storage 4 | 2 2 . Processor . | . . . Hackware . | . . . Protection 2 | . 1 1 Artifact . | . . . Weapon 6 | 2 3 1 Energy Gun . | . . . Energy Cannon . | . . . Ballistic Gun 4 | 2 2 . Ballistic Cannon . | . . . Launcher 2 | . 1 1 Special Weapon . | . . . Impact Weapon . | . . . Slashing Weapon . | . . . Piercing Weapon . | . . . Special Melee Weapon . | . . . Unidentified Prototypes . | . . . Parts Lost 9 | . 2 7 Power 2 | . . 2 Propulsion 3 | . 1 2 Utility 1 | . . 1 Weapon 3 | . 1 2 Highest Loss Streak 5 | . 1 5 To Critical Strikes 1 | . . 1 Average Slot Usage (%) 89 | . 95 77 Engine 13 | . 14 13 Treads 21 | . 23 17 Device 3 | . 4 . Storage 14 | . 14 14 Protection 7 | . 9 3 Ballistic Gun 19 | . 27 1 Launcher 8 | . . 25 Naked Turns . | . . . Heaviest Build 98 | 17 97 98 Greatest Support 40 | 40 40 40 Greatest Overweight (x) 4 | . 4 4 Average Overweight (x) 1 | . . 3 Largest Inventory Capacity 25 | 8 25 25 Average Capacity 17 | 6 15 25 Most Carried 17 | 2 14 17 Average Carried 10 | 1 8 15 Final Capacity 25 | 8 25 25 Final Carried 15 | 1 14 15 Class Distribution -------------------- 100% | Mutant Dominant Class ---------------- Mutant | -10/Materials Mutant | -10/Mines Resources | -11 -10 -10 ----------- Run | Yrd Mat Min Matter Collected 736 | 278 402 56 Remotely . | . . . Salvage Created 1247 | 105 1107 35 Parts 68 | 3 65 . Haulers Intercepted 1 | . 1 . Recyclers Shooed 9 | . 9 . Parts Field Recycled . | . . . Retrieved Matter . | . . . Parts Self-Destructed . | . . . Prevented . | . . . Kills | -11 -10 -10 ------- Run | Yrd Mat Min Combat Hostiles Destroyed 22 | . 18 4 Guns 18 | . 18 . AOE 4 | . . 4 Classes Destroyed 10 | 2 6 2 Builder 1 | . 1 . Tunneler 1 | 1 . . Hauler 1 | . 1 . Recycler 6 | 1 5 . Operator 3 | . 3 . Watcher 1 | . 1 . Swarmer 6 | . 6 . Grunt 12 | . 12 . Sentry 2 | . . 2 Assembled 2 | . . 2 Best Kill Streak 5 | 1 5 2 Combat Bots Only 4 | . 4 2 Max Kills in Single Turn 2 | 1 1 2 Gunslinging . | . . . Exploded 2 | . . 2 Melee . | . . . Uniques/NPCs Destroyed . | . . . Combat | -11 -10 -10 -------- Run | Yrd Mat Min Hostile Shots Fired 136 | . 83 53 Missed 35 | . 19 16 Damage Taken 1324 | . 685 639 Core 251 | . 119 132 Absorbed by Shields . | . . . Core Remaining (%) 100 | 100 . . Volleys Fired 115 | 8 102 5 Largest 2 | 2 2 2 Hottest 60 | 40 40 60 Shots Fired 230 | 16 204 10 Gun 220 | 16 204 . Cannon . | . . . Launcher 10 | . . 10 Special . | . . . Kinetic 220 | 16 204 . Thermal . | . . . Explosive 10 | . . 10 Electromagnetic . | . . . Robot Hit Streak 18 | 14 18 9 Robot Miss Streak 5 | . 5 1 Penetration Max . | . . . Secondary Targets 2 | . 2 . Max Gunslinging Chain 1 | . 1 . Shots Hit Robots 161 | 14 140 7 Core Hits 75 | 4 56 15 Critical Kills . | . . . Critical Parts Destroyed 2 | 1 1 . Critical Strikes 2 | 1 1 . Destroy 2 | 1 1 . Melee Attacks . | . . . Impact . | . . . Slashing . | . . . Piercing . | . . . Sneak Attacks . | . . . Combat Hostiles . | . . . Follow-up Attacks . | . . . Damage Inflicted 1800 | 121 1331 348 Guns 1450 | 119 1331 . Cannons . | . . . Explosions 340 | . . 340 Melee . | . . . Ramming 10 | 2 . 8 Kinetic 1450 | 119 1331 . Thermal . | . . . Explosive 340 | . . 340 Electromagnetic . | . . . Impact . | . . . Slashing . | . . . Piercing . | . . . Highest Corruption 4 | . . 4 Average Corruption 2 | . . 2 Corruption Purged . | . . . Corruption Blocked . | . . . Overload Shots . | . . . Overflow Damage 23 | . . 23 Projectiles . | . . . Explosions 23 | . . 23 Melee . | . . . Knockbacks . | . . . Impact . | . . . Kinetic . | . . . Secondary . | . . . Self-Inflicted Damage 51 | . . 51 Shots 5 | . . 5 Rammed 3 | 1 . 2 Targets Rammed 3 | 1 . 2 Kicked . | . . . Crushed . | . . . Highest Temperature 45 | . 25 45 Average Temperature 10 | . 7 34 Received Heat Transfer 417 | . 318 99 Siege Activations . | . . . Robots Corrupted . | . . . Combat Hostiles . | . . . Parts Fried . | . . . Impact Corruptions . | . . . Robots Melted . | . . . Combat Hostiles . | . . . Parts Melted . | . . . Heat Transferred . | . . . Parts Sabotaged . | . . . Parts Stolen . | . . . Parts Stripped . | . . . Power Chain Reactions . | . . . Alert | -11 -10 -10 ------- Run | Yrd Mat Min Peak Influence 301 | 10 301 58 Initial 6 | . 6 1 Average 56 | 4 84 9 Maximum Alert Level 1 | . 1 . Low Security (%) 92 | 100 88 100 Level 1 7 | . 11 . Level 2 . | . . . Level 3 . | . . . Level 4 . | . . . Level 5 . | . . . High Security . | . . . Max Security . | . . . Squads Dispatched 4 | . 4 . Investigation . | . . . Extermination . | . . . Reinforcement 4 | . 4 . Assault . | . . . Garrison . | . . . Intercept . | . . . Searches Triggered . | . . . Construction Impeded . | . . . Haulers Reinforced . | . . . Active Scanning Responses . | . . . Cargo Convoy Interrupts . | . . . Stealth | -11 -10 -10 --------- Run | Yrd Mat Min Distress Signals 3 | . 3 . Communications Jammed . | . . . Distress Signals . | . . . Times Spotted 42 | . 33 9 Peak Tracking Total 6 | . 5 6 Tactical Retreats 2 | . 2 . Traps | -11 -10 -10 ------- Run | Yrd Mat Min Traps Triggered . | . . . Indirectly . | . . . Trap Hack Attempts . | . . . Triggered . | . . . Disarmed . | . . . Reprogrammed . | . . . Reused . | . . . Traps Extracted . | . . . Installed . | . . . Triggered . | . . . Machines | -11 -10 -10 ---------- Run | Yrd Mat Min Machines Disabled 2 | . . 2 Max in Single Turn 2 | . . 2 Machines Repaired . | . . . Machines Dismantled . | . . . Machines Sabotaged . | . . . Overloaded Fab Kills . | . . . Hacking | -11 -10 -10 --------- Run | Yrd Mat Min Machines Accessed 3 | . 3 . Terminals 2 | . 2 . Fabricators . | . . . Repair Stations . | . . . Recycling Units 1 | . 1 . Scanalyzers . | . . . Garrison Access . | . . . Total Hacks 7 | . 7 . Successful 5 | . 5 . Failed 2 | . 2 . Catastrophic . | . . . Database Lockouts . | . . . Manual 3 | . 3 . Terminals 6 | . 6 . Fabricators . | . . . Repair Stations . | . . . Recycling Units 1 | . 1 . Scanalyzers . | . . . Garrison Access . | . . . Terminal Hacks 4 | . 4 . Alert Level 2 | . 2 . Unreport Threat 1 | . 1 . Hauler Manifests 1 | . 1 . Fabricator Hacks . | . . . Repair Station Hacks . | . . . Recycling Unit Hacks 1 | . 1 . Report Inventory 1 | . 1 . Scanalyzer . | . . . Garrison Access Hacks . | . . . Unauthorized Hacks . | . . . Terminals . | . . . Fabricators . | . . . Repair Stations . | . . . Recycling Units . | . . . Scanalyzers . | . . . Garrison Access . | . . . Data Cores Recovered . | . . . Used . | . . . Hacking Detections 2 | . 2 . Full Trace Events . | . . . Feedback Events . | . . . Feedback Blocked . | . . . Robot Schematics Acquired . | . . . Robots Built . | . . . Authchips . | . . . Time . | . . . Total Robot Build Rating . | . . . Part Schematics Acquired . | . . . Parts Built . | . . . Authchips . | . . . Time . | . . . Total Part Build Rating . | . . . Parts Repaired . | . . . Time . | . . . Parts Recycled . | . . . Recycled Matter . | . . . Retrieved Matter . | . . . Retrieved Components . | . . . Parts Scanalyzed . | . . . Part Schematics Acquired . | . . . Parts Damaged . | . . . Bothacking | -11 -10 -10 ------------ Run | Yrd Mat Min Used RIF Installer . | . . . Robots Hacked . | . . . Non-combat . | . . . Combat . | . . . Robot Hacks Applied . | . . . Relay Couplers Released . | . . . Fabnet Peak Effective % . | . . . Robots Rewired . | . . . Allies Hacked . | . . . Hacks Repelled . | . . . Allies | -11 -10 -10 -------- Run | Yrd Mat Min Total Allies . | . . . Largest Group . | . . . Highest-Rated Group . | . . . Highest-Rated Ally . | . . . Total Orders . | . . . Ally Attacks . | . . . Total Damage . | . . . Kills . | . . . Allies Corrupted . | . . . Allies Melted . | . . . Intel | -11 -10 -10 ------- Run | Yrd Mat Min Robot Analysis Total . | . . . Derelict Logs Recovered . | . . . Drone Launches . | . . . Drone Recoveries . | . . . Exploration | -11 -10 -10 ------------- Run | Yrd Mat Min Turns Passed 3125 | 198 1961 966 Spaces Moved 1039 | 130 692 217 Core 42 | 42 . . Treads 989 | 80 692 217 Legs . | . . . Wheels 8 | 8 . . Hover . | . . . Flight . | . . . Fastest Speed 50 | 50 160 320 Average Speed 245 | 120 212 425 Slowest Speed 480 | 160 480 480 Overloaded Moves . | . . . Propulsion Burnouts . | . . . Robots Hopped . | . . . Cave-ins Triggered . | . . . Exploration Rate (%) 44 | 5 79 49 Regions Visited 2 Branch Regions 1 Pre-discovered Areas . | . . . Known Exits Taken . | . . . Unknown Exits Taken 2 | 1 1 . Scrap Searched 1 | . . 1 Spaces Dug . | . . . Terrain Destroyed 52 | . . 52 Melee . | . . . Projectile . | . . . AOE 52 | . . 52 Terrain Rammed . | . . . Walls Destroyed . | . . . Machines Disabled . | . . . Actions | -11 -10 -10 --------- Run | Yrd Mat Min Total 1403 | 156 1011 236 Wait 198 | 1 191 6 Move 1037 | 129 691 217 Hop . | . . . Pick Up 19 | 1 15 3 Fast Attach 13 | 10 3 . Attach 3 | . 1 2 Detach 5 | 3 2 . Swap 4 | . 3 1 Drop 6 | 3 3 . Fire 115 | 8 102 5 Melee . | . . . Ram 1 | . . 1 Kick . | . . . Crush 2 | 1 . 1 Escape Stasis . | . . . Rewire . | . . . Trap . | . . . Miscellaneous . | . . . Route ------- -11/Scrapyard -10/Materials (discovered 2 exits: [*Mat] / [*Min]) -10/Mines (discovered 2 exits: [*Mat x2]) History --------- Turn | Location | Event 11 | -11/Scrapyard | Discovered new exit (range 13) 199 | -11/Scrapyard | Entered Materials 305 | -10/Materials | Build established: Mutant 749 | -10/Materials | Discovered new exit (range 7) 926 | -10/Materials | Discovered new exit (range 15) 2160 | -10/Materials | Entered Mines 2174 | -10/Mines | Met a Derelict bent on vengeance 2231 | -10/Mines | Discovered new exit (range 15) 2291 | -10/Mines | YI-UF0 nonchalantly dropped a Grenade Launcher on the ground 2394 | -10/Mines | Core integrity fell below 50% 2658 | -10/Mines | Discovered new exit (range 13) 3085 | -10/Mines | Assembled infested the area 3112 | -10/Mines | Core integrity fell below 20% 3126 | -10/Mines | Destroyed by as-26244 with Assembled Heavy Rifle Last Messages --------------- 03085_ ALERT: Infestation in the mines, dispatching Demolisher response squad. 03098_ Ion Engine destroyed. 03098_ Destroyed Asb. F-torch. 03101_ as-63844 destroyed. 03101_ as-29104 destroyed. 03104_ Slammed into T-07 Excavator. 03113_ Critical hit (Destroy). 03113_ Grenade Launcher destroyed. 03115_ Lgt. Treads destroyed. 03116_ The unstable cave ceiling collapses. 03116_ Slammed into as-34576. 03116_ Destabilizing: System corrupted (+2). 03117_ The unstable cave ceiling collapses. 03118_ Knocked back. 03120_ K-01 Serf collects debris. 03120_ Grenade Launcher destroyed. 03124_ K-01 Serf collects debris. 03125_ Ion Engine destroyed. 03125_ System corrupted by crushing effect (+2). Map ----- +----------------------------------------------------+ | ?????????????????????????????? | | ?????????????????????????????? | | ?????????????????????????????? | | ?????????????????????????????? | | ?????????????????????????????? | | ?????????????????????????????? | | ?????????????????????????????? | | ?????????????????????????????? | | ?????????????????????????????? | | ?????? ?????????????????????? | | ?????? ????????????????????? | | ?????? #????????????????????? | | ?????# ###??????????????????? | | ????? #??????????????????? | | ????? a ??????????????????? | | ????? a k#??????????????????? | | ???## #??????????????????? | | ??## # #??????????????????? | | ??# ##?????????????????? | | ?## a ######????????????? | | ?# # ?????????????? | | ?# ????????????????? | | ?# a #???????????????????? | | ??# #?????????????????????? | | ??###a#??????????????????????? | | ????#@#??????????????????????? | | ????# ########???????????????? | | ????# #?????????????? | | ????# ########???????????????? | | ????# #??????????????????????# | | ????# ######????????????????? | | ????# #????????????????# | | ????###### #????????????????# | | ?????????# #????????????????# | | ?????????# #???????????#????# | | ?????????# #??????????? ????# | | ?????????# #??????????? #???# | | ???????### #??????????# #???# | | ??????## #??????????# #???# | | ??????# #??????????# #???# | | ??????# ##?????????# ##### | | ??????## ####??????# | | ???????# ##?????# #??# | | ???????## #?????# #### | | ????????## #????## | | ?????????## #????# | | ??????????#### #???## ## | | ?????????????# #??## ### | | ?????????????# #?## #?## | | ??????????#### ### #??## | +----------------------------------------------------+ Best States ------------- Heat Dissipation 25 Energy Generation 10 Energy Capacity 250 Matter Stores 300 Matter Capacity 300 Sight Range 16 Terrain Scan Density 10 Armor Coverage 225 Evasion (%) 50 Recoil Reduction 2 Item Schematics ----------------- None Robot Schematics ------------------ None Fabricated ------------ Nothing Alien Tech Used ----------------- None Achievements -------------- None Challenges ------------ None Game ------ Seed BlastBlastInterpreter Manual? 0 Play Time 00:18:19 Cumulative 3.7 hours Start 2024.06.13 @ 01:30:48 End 2024.06.13 @ 12:46:41 Sessions 2 Manual Loads 0 Difficulty Rogue Special Mode None Game No. 7 Rogue 7 Adventurer 0 Explorer 0 Win Type - Total 0 Types 0/0/0/0/0/0/0/0/0 Lore% 3 Gallery% 5 Achievement% 6 Wizard Run 0 Options --------- Layout 1 ASCII 0 Keyboard 1 Movement Numpad Keybinds 0 Fullscreen 1 Font 24/Smallcaps Map View 50x35 Zoom Use 0% Tactical HUD 1 Map Filters NONE Filters NONE Steam 1 RUN: 6abe086d-b662-4ef3-85b1-45419ade1e73